Cogmind - Beta 11 @@@ ROGUE MODE // 2022.04.04 @ 22:05:53 Player: Azken Zutik Result: Destroyed by DAS Turret with DAS Cannon Performance ------------- Evolutions (0) 0 Regions Visited (3) 600 Robots Destroyed (60) 300 Value Destroyed (1081) 1081 Prototype IDs (28) 560 Alien Tech Used (0) 0 Bonus (383) 383 TOTAL SCORE: 2924 Bonus ------- High Alert Combat Kills 97 Aligned with FarCom 300 Friendly Fire -14 Cogmind --------- Core Integrity 0/250 Matter 279/300 Energy 172/310 System Corruption 9% Temperature Cool (0) Movement Walking (200) Ox1 Location -10/Exiles Parts ------- > --- POWER (1) -------- Reinforced Fission Core > --- PROPULSION (2) --- Makeshift Leg Advanced Myomer Leg > --- UTILITY (2) ------ Experimental Heat Sink High-capacity Storage Unit > --- WEAPON (2) ------- Latent Energy Streamer > --- INVENTORY (20) --- High-capacity Matter Pod (200) High-capacity Matter Pod (200) High-capacity Matter Pod (122) Seismic Detector Experimental Targeting Computer Tractor Beam Assault Rifle Assault Rifle Light Assault Rifle Light Assault Rifle Light Assault Rifle Shotgun AWS/Gauss 8R-AWN's Boregun 8R-AWN's Boregun Grenade Launcher Datajack Peak State ------------ > --- POWER ------------ Reinforced Fission Core > --- PROPULSION ------- Makeshift Leg Advanced Myomer Leg > --- UTILITY ---------- Experimental Heat Sink High-capacity Storage Unit > --- WEAPON ----------- Latent Energy Streamer 8R-AWN's Boregun > --- INVENTORY -------- High-capacity Matter Pod High-capacity Matter Pod High-capacity Matter Pod Seismic Detector Experimental Targeting Computer Tractor Beam Assault Rifle Assault Rifle Light Assault Rifle Light Assault Rifle Light Assault Rifle Shotgun AWS/Gauss 8R-AWN's Boregun Grenade Launcher Datajack [Rating: 50] Favorites ----------- Power Ion Engine Engine Ion Engine Power Core Reinforced Fission Core Propulsion Light Treads Treads Light Treads Leg Advanced Myomer Leg Utility Light Armor Plating Device Seismic Detector Storage High-capacity Storage Unit Protection Light Armor Plating Weapon Assault Rifle Energy Cannon Latent Energy Streamer Ballistic Gun Assault Rifle Launcher Grenade Launcher Special Weapon Mining Laser Impact Weapon Maul Special Melee Weapon Datajack Build | -11 -10 -10 -10 ------- Run | Scr Mat Min Exi Slots Evolved . | . . . . Power . | . . . . Propulsion . | . . . . Utility . | . . . . Weapon . | . . . . Parts Attached 50 | 7 28 . 15 Power 3 | 1 1 . 1 Engine 2 | 1 1 . . Core 1 | . . . 1 Reactor . | . . . . Propulsion 6 | 2 . . 4 Treads 4 | 2 . . 2 Leg 2 | . . . 2 Wheel . | . . . . Hover . | . . . . Flight . | . . . . Utility 8 | 2 4 . 2 Device 3 | 1 . . 2 Storage 3 | 1 2 . . Processor . | . . . . Hackware . | . . . . Protection 2 | . 2 . . Artifact . | . . . . Weapon 33 | 2 23 . 8 Energy Gun . | . . . . Energy Cannon 1 | . . . 1 Ballistic Gun 15 | 2 9 . 4 Ballistic Cannon . | . . . . Launcher 9 | . 7 . 2 Special Weapon 3 | . 3 . . Impact Weapon 4 | . 4 . . Slashing Weapon . | . . . . Piercing Weapon . | . . . . Special Melee Weapon 1 | . . . 1 Unidentified Prototypes 3 | . . . 3 Parts Lost 6 | . . . 6 Power 1 | . . . 1 Propulsion 3 | . . . 3 Utility 1 | . . . 1 Weapon 1 | . . . 1 Highest Loss Streak 4 | . . . 4 To Critical Strikes 2 | . . . 2 Average Slot Usage (%) 93 | . 99 100 82 Engine 13 | . 14 14 12 Treads 27 | . 28 28 26 Device 1 | . 2 . . Storage 14 | . 14 14 14 Protection 11 | . 11 14 12 Ballistic Gun 12 | . 15 14 7 Launcher 6 | . 6 14 5 Impact Weapon 2 | . 4 . . Naked Turns . | . . . . Heaviest Build 71 | 13 54 52 71 Greatest Support 50 | 40 40 40 50 Greatest Overweight (x) 2 | 1 1 1 2 Average Overweight (x) . | . . 1 1 Largest Inventory Capacity 20 | 8 20 20 20 Average Capacity 16 | 5 16 20 20 Most Carried 20 | 5 20 20 20 Average Carried 14 | . 14 20 18 Final Capacity 20 | 8 20 20 20 Final Carried 20 | 5 20 20 18 Class Distribution -------------------- 99% | Mutant Dominant Class ---------------- Mutant | -10/Materials Mutant | -10/Mines Mutant | -10/Exiles Resources | -11 -10 -10 -10 ----------- Run | Scr Mat Min Exi Matter Collected 2540 | 594 1023 . 923 Remotely . | . . . . Salvage Created 1451 | 346 983 . 122 Parts 114 | 35 70 . 9 Haulers Intercepted 2 | . 2 . . Recyclers Shooed 2 | . 2 . . Parts Field Recycled . | . . . . Retrieved Matter . | . . . . Parts Self-Destructed . | . . . . Prevented . | . . . . Kills | -11 -10 -10 -10 ------- Run | Scr Mat Min Exi Combat Hostiles Destroyed 24 | . 21 . 3 Guns 7 | . 5 . 2 AOE 17 | . 16 . 1 Classes Destroyed 11 | 3 6 . 2 Worker 11 | 4 7 . . Builder 4 | . 4 . . Tunneler 12 | 9 3 . . Hauler 2 | . 2 . . Recycler 4 | 1 3 . . Operator 1 | . 1 . . Watcher 3 | . 3 . . Swarmer 6 | . 6 . . Grunt 15 | . 15 . . Zionite 1 | . . . 1 Assembled 2 | . . . 2 Best Kill Streak 8 | 4 8 . 2 Combat Bots Only 7 | . 7 . 1 Max Kills in Single Turn 3 | 1 3 . 1 Gunslinging . | . . . . Exploded 3 | . 3 . 1 Melee . | . . . . Uniques/NPCs Destroyed 1 | . . . 1 8R-AWN (-10/Exiles) Combat | -11 -10 -10 -10 -------- Run | Scr Mat Min Exi Damage Taken 1390 | . 382 . 1008 Core 273 | . 84 . 189 Absorbed by Shields . | . . . . Regen/Repaired (Parts) 61 | . 61 . . Core Remaining (%) 100 | 100 . . . Volleys Fired 133 | 33 90 . 10 Largest 2 | 2 2 . 1 Hottest 100 | 40 100 . 60 Shots Fired 275 | 66 151 . 58 Gun 214 | 66 99 . 49 Cannon 2 | . . . 2 Launcher 52 | . 45 . 7 Special 7 | . 7 . . Kinetic 214 | 66 99 . 49 Thermal 7 | . 7 . . Explosive 52 | . 45 . 7 Electromagnetic 2 | . . . 2 Robot Hit Streak 40 | 7 28 . 40 Robot Miss Streak 3 | 3 3 . 1 Penetration Max . | . . . . Secondary Targets . | . . . . Autonomous 48 | . . . 48 Shots Hit Robots 170 | 34 87 . 49 Core Hits 96 | 15 66 . 15 Critical Kills 1 | . 1 . . Critical Parts Destroyed 4 | . 4 . . Critical Strikes 6 | . 5 . 1 Destroy 2 | . 1 . 1 Smash 4 | . 4 . . Melee Attacks 21 | . 21 . . Impact 21 | . 21 . . Slashing . | . . . . Piercing . | . . . . Sneak Attacks 8 | . 8 . . Combat Hostiles . | . . . . Follow-up Attacks . | . . . . Damage Inflicted 4841 | 470 2817 . 1554 Guns 2526 | 470 727 . 1329 Cannons . | . . . . Explosions 1650 | . 1425 . 225 Melee 665 | . 665 . . Ramming . | . . . . Kinetic 2526 | 470 727 . 1329 Thermal . | . . . . Explosive 1612 | . 1425 . 187 Electromagnetic 38 | . . . 38 Impact 665 | . 665 . . Slashing . | . . . . Piercing . | . . . . Highest Corruption 9 | . 4 4 9 Average Corruption 3 | . 3 4 4 Corruption Purged . | . . . . Corruption Blocked . | . . . . Effects 80 | . 51 2 27 Message Errors 20 | . 15 . 5 Matter Fused 13 | . 8 . 5 Heat Flow Errors 15 | . 7 1 7 Energy Discharges 14 | . 9 . 5 Data Loss (minor) 8 | . 3 1 4 Data Loss (major) 4 | . 3 . 1 Misfires 4 | . 4 . . Weapon Failures 2 | . 2 . . Overload Shots . | . . . . Overflow Damage 432 | . 432 . . Projectiles . | . . . . Explosions 4 | . 4 . . Melee 428 | . 428 . . Knockbacks . | . . . . Impact . | . . . . Kinetic . | . . . . Secondary . | . . . . Self-Inflicted Damage 40 | . 40 . . Shots 1 | . 1 . . Rammed . | . . . . Targets Rammed . | . . . . Kicked . | . . . . Crushed . | . . . . Highest Temperature 265 | . 247 265 247 Average Temperature 68 | . 49 134 100 Received Heat Transfer 171 | . 171 . . Siege Activations . | . . . . Robots Corrupted . | . . . . Combat Hostiles . | . . . . Parts Fried 6 | . 6 . . Impact Corruptions 14 | . 14 . . Robots Melted . | . . . . Combat Hostiles . | . . . . Parts Melted . | . . . . Heat Transferred . | . . . . Parts Sabotaged . | . . . . Parts Stolen . | . . . . Parts Stripped . | . . . . Power Chain Reactions . | . . . . Missiles Intercepted . | . . . . Latent Energy Used 272 | . . . 272 LE Corruption 5 | . . . 5 Alert | -11 -10 -10 -10 ------- Run | Scr Mat Min Exi Peak Influence 1217 | 70 1217 474 . Initial 474 | . . 474 . Average 411 | 27 503 474 . Maximum Alert Level 4 | . 4 2 . Low Security (%) 37 | 100 24 . . Level 1 9 | . 12 . . Level 2 36 | . 41 100 . Level 3 12 | . 16 . . Level 4 3 | . 5 . . Level 5 . | . . . . High Security . | . . . . Max Security . | . . . . Squads Dispatched 8 | . 8 . . Investigation 7 | . 7 . . Extermination . | . . . . Reinforcement 1 | . 1 . . Assault . | . . . . Garrison . | . . . . Intercept . | . . . . Searches Triggered . | . . . . Construction Impeded . | . . . . Haulers Reinforced . | . . . . Active Scanning Responses . | . . . . Cargo Convoy Interrupts . | . . . . Stealth | -11 -10 -10 -10 --------- Run | Scr Mat Min Exi Distress Signals . | . . . . Communications Jammed . | . . . . Distress Signals . | . . . . Times Spotted 47 | . 32 . 15 Peak Tracking Total 10 | . 7 . 10 Tactical Retreats 5 | . 1 . 4 Traps | -11 -10 -10 -10 ------- Run | Scr Mat Min Exi Traps Triggered 4 | . 4 . . Indirectly . | . . . . Trap Hack Attempts . | . . . . Triggered . | . . . . Disarmed . | . . . . Reprogrammed . | . . . . Reused . | . . . . Traps Extracted . | . . . . Installed . | . . . . Triggered . | . . . . Exploded 3 | . . . 3 Machines | -11 -10 -10 -10 ---------- Run | Scr Mat Min Exi Machines Disabled 33 | . 29 . 4 Max in Single Turn 2 | . 2 . 1 Machines Sabotaged . | . . . . Garrisons Compromised . | . . . . Overloaded Fab Kills . | . . . . Hacking | -11 -10 -10 -10 --------- Run | Scr Mat Min Exi Machines Accessed 9 | . 7 . 2 Terminals 5 | . 5 . . Fabricators . | . . . . Repair Stations 1 | . 1 . . Recycling Units 1 | . 1 . . Scanalyzers . | . . . . Garrison Access . | . . . . Total Hacks 19 | . 17 . 2 Successful 13 | . 11 . 2 Failed 6 | . 6 . . Catastrophic 1 | . 1 . . Database Lockouts . | . . . . Manual 14 | . 13 . 1 Terminals 13 | . 13 . . Fabricators . | . . . . Repair Stations 2 | . 2 . . Recycling Units 2 | . 2 . . Scanalyzers . | . . . . Garrison Access . | . . . . Terminal Hacks 4 | . 2 . 2 Record 1 | . . . 1 Prototype ID Bank 1 | . 1 . . Terminal Index 1 | . 1 . . EX-Prototype ID Bank 1 | . . . 1 Fabricator Hacks . | . . . . Repair Station Hacks 2 | . 2 . . Scan Component 1 | . 1 . . Repair 1 | . 1 . . Recycling Unit Hacks . | . . . . Scanalyzer . | . . . . Garrison Access Hacks . | . . . . Unauthorized Hacks 7 | . 7 . . Terminals 6 | . 6 . . Track 1 | . 1 . . Botnet 1 | . 1 . . Search 4 | . 4 . . Fabricators . | . . . . Repair Stations . | . . . . Recycling Units 1 | . 1 . . Tunnel 1 | . 1 . . Scanalyzers . | . . . . Garrison Access . | . . . . Data Cores Recovered . | . . . . Used . | . . . . Hacking Detections 6 | . 6 . . Full Trace Events 1 | . 1 . . Feedback Events . | . . . . Feedback Blocked . | . . . . Robot Schematics Acquired . | . . . . Robots Built . | . . . . Authchips . | . . . . Time . | . . . . Total Robot Build Rating . | . . . . Part Schematics Acquired . | . . . . Parts Built . | . . . . Authchips . | . . . . Time . | . . . . Total Part Build Rating . | . . . . Parts Repaired 1 | . 1 . . Time 26 | . 26 . . Parts Recycled . | . . . . Recycled Matter . | . . . . Retrieved Matter . | . . . . Retrieved Components . | . . . . Parts Scanalyzed . | . . . . Part Schematics Acquired . | . . . . Parts Damaged . | . . . . Bothacking | -11 -10 -10 -10 ------------ Run | Scr Mat Min Exi Used RIF Installer . | . . . . Robots Hacked . | . . . . Non-combat . | . . . . Combat . | . . . . Robot Hacks Applied . | . . . . Relay Couplers Released . | . . . . Fabnet Peak Effective % . | . . . . Robots Rewired . | . . . . Allies Hacked . | . . . . Hacks Repelled . | . . . . Allies | -11 -10 -10 -10 -------- Run | Scr Mat Min Exi Total Allies . | . . . . Largest Group . | . . . . Highest-Rated Group . | . . . . Highest-Rated Ally . | . . . . Total Orders . | . . . . Ally Attacks . | . . . . Total Damage . | . . . . Kills . | . . . . Allies Corrupted . | . . . . Allies Melted . | . . . . Intel | -11 -10 -10 -10 ------- Run | Scr Mat Min Exi Robot Analysis Total . | . . . . Derelict Logs Recovered . | . . . . Drone Launches . | . . . . Drone Recoveries . | . . . . Exploration | -11 -10 -10 -10 ------------- Run | Scr Mat Min Exi Turns Passed 5173 | 652 2609 171 1741 Spaces Moved 2007 | 168 1114 72 653 Core 87 | 87 . . . Treads 1887 | 81 1114 72 620 Legs 33 | . . . 33 Wheels . | . . . . Hover . | . . . . Flight . | . . . . Fastest Speed 50 | 50 160 240 190 Average Speed 208 | 126 200 240 239 Slowest Speed 320 | 160 240 240 320 Overloaded Moves . | . . . . Propulsion Burnouts . | . . . . Robots Hopped . | . . . . Cave-ins Triggered . | . . . . Exploration Rate (%) 48 | 4 98 24 69 Regions Visited 3 Branch Regions 2 Pre-discovered Areas 2 | . 1 . 1 Known Exits Taken . | . . . . Unknown Exits Taken 3 | 1 1 1 . Scrap Searched . | . . . . Spaces Dug . | . . . . Terrain Destroyed 308 | . 261 . 47 Melee . | . . . . Projectile 14 | . . . 14 AOE 294 | . 261 . 33 Terrain Rammed . | . . . . Walls Destroyed . | . . . . Machines Disabled . | . . . . Actions | -11 -10 -10 -10 --------- Run | Scr Mat Min Exi Total 2715 | 537 1278 71 829 Wait 443 | 325 2 . 116 Move 2004 | 167 1113 71 653 Hop . | . . . . Pick Up 36 | 5 17 . 14 Fast Attach 13 | 7 2 . 4 Attach 9 | . . . 9 Detach 6 | . 1 . 5 Swap 28 | . 26 . 2 Drop 22 | . 6 . 16 Fire 133 | 33 90 . 10 Melee 21 | . 21 . . Ram . | . . . . Kick . | . . . . Crush . | . . . . Escape Stasis . | . . . . Rewire . | . . . . Trap . | . . . . Miscellaneous . | . . . . Route ------- -11/Scrapyard -10/Materials (discovered 5 exits: [*Mat x3] / [*Min x2]) -10/Mines (discovered 2 exits: [*Mat] / *Exi) -10/Exiles History --------- Turn | Location | Event 6 | -11/Scrapyard | Discovered new exit (range 16) 653 | -11/Scrapyard | Entered Materials 654 | -10/Materials | Build established: Mutant 954 | -10/Materials | Discovered new exit (range 16) 1115 | -10/Materials | Discovered new exit (range 8) 1260 | -10/Materials | Discovered new exit (range 5) 1348 | -10/Materials | Discovered new exit (range 15) 1491 | -10/Materials | Destroyed 7 combat bots 1599 | -10/Materials | Discovered new exit (range 12) 2542 | -10/Materials | Repaired Lgt. Armor Plating? 3262 | -10/Materials | Entered Mines 3286 | -10/Mines | Discovered new exit (range 9) 3292 | -10/Mines | Met a Derelict bent on vengeance 3416 | -10/Mines | Deemed a non-threat by the Exiles lab entrance 3418 | -10/Mines | Discovered new exit (range 5) 3433 | -10/Mines | Entered Exiles 3527 | -10/Exiles | Met 8R-AWN 3573 | -10/Exiles | Met EX-HEX 3671 | -10/Exiles | Met EX-BIN 3712 | -10/Exiles | Aligned with FarCom system 3714 | -10/Exiles | Given EX-Vault access code 3786 | -10/Exiles | Opened EX-Vault 3809 | -10/Exiles | Found AWS/Gauss 3815 | -10/Exiles | Found Latent Energy Streamer 3871 | -10/Exiles | Warned to stay clear of 0b10 Research branches 3970 | -10/Exiles | Met EX-DEC 3999 | -10/Exiles | Learned location of Zion (-7) 4929 | -10/Exiles | Attacked by the Exiles 5016 | -10/Exiles | Lost 4 parts (1p1n1u1w) 5058 | -10/Exiles | Core integrity fell below 50% 5062 | -10/Exiles | Destroyed 8R-AWN 5090 | -10/Exiles | Found Prototype Ballistic Gun 5095 | -10/Exiles | Found Prototype Ballistic Gun 5108 | -10/Exiles | Found Prototype Processor 5138 | -10/Exiles | Identified 8R-AWN's Boregun (x2) 5164 | -10/Exiles | Core integrity fell below 20% 5174 | -10/Exiles | Destroyed by DAS Turret with DAS Cannon Last Messages --------------- 05064_ Slug penetrates Wall. 05064_ Slug penetrates AW-YGN(z). 05069_ AW-YGN(z) destroyed. 05086_ Acquired Prototype Leg. 05087_ Identified Adv. Myomer Leg. 05088_ Dropped Lgt. Treads. 05090_ Acquired Prototype Ballistic Gun. 05091_ Acquired 10 matter. 05095_ Acquired Prototype Ballistic Gun. 05100_ Acquired Hcp. Matter Pod. 05105_ Acquired Prototype Device. 05108_ Acquired Prototype Processor. 05111_ Acquired Rnf. Fission Core. 05112_ Acquired 95 matter. 05136_ Acquired Mak. Leg. 05138_ Identified 8R-AWN's Boregun. 05139_ Identified Exp. Heat Sink. 05141_ Acquired 11 matter. 05166_ System corrupted: Heat flow error (+183). 05171_ Acquired 8 matter. Map ----- +----------------------------------------------------+ | ????????????????????????????????????????#""X" | | ????????????????????????????????????????#" | | ????????????????????????????????????????#" ## | | ??????????? ????????????????????????????#""""""?# | | ??????????? ??????????????????????????????"###??# | | ??????????? ????????????????????????????????????# | | ??????????? ????????????????????????????????????# | | ?????????? #??????????????????????????????????## | | ????????# #??#######?????????????????????????#" | | ######??# #??#!!! "#?????????????????????????#" | | #""### #??# "#?????????????????????????#" | | ## #??# "#?????????????????????????#" | | ## #?## ""#?????????????#???????????#" | | #"###" ""#????????????? """????????#" | | # ##" ""#????????????" """#???????## | | ?# # " #??????????????" ?????????# | | ?#"## ####??????????"" ?????????#" | | ????#### # ##?????????"" "#????????#" | | ???????### ##???????? ""?????????#" | | ?########" = #?????????" "?????????##" | | ?# !!"""" ##????????# #????????##"" | | ?#! ########## ###?######"" | | ?#! [ [ ; * ""# %# X# #"###""""""" | | ?#! [ "## ! % % """""" " "" | | ?# !""""""#""####"# "" """ " | | ?########"# # #?#### @ " " | | ????????# # # #????### | | ????????### # #??????### | | ??????????# ## ????????## | | ??????????# #? ?????????## | | ??????????# #? #?????????"; | | ??????????# #?##????????? """" | | ??????????# #??????????? " ##### | | ??????????? ???????????? " ""##???? | | ??????????? ???????????#"" """##????? | | ??????????? ???????????#" """##?????? | | ??????????? ???????????## ""#??????? | | ??????????? ????????????#" ########? | | ??????????? ????????????#" ## ## | | ?????????????????????????" t " | | ?????????????????????????#" | | ?????????????????????????#"""" | | ??????????????????????????# | | ??????????????????????????#" " | | ??????????????????????????#"""" ""## | | ??????????????????????????#"" ""#### | | ???????????????????????????" """"##??# | | ???????????????????????????""" """#??## | | ???????????????????????????# ""##??#! | | ???????????????????????????#"" """##???#" | +----------------------------------------------------+ Best States ------------- Heat Dissipation 51 Energy Generation 19 Energy Capacity 310 Matter Stores 300 Matter Capacity 300 Sight Range 16 Terrain Scan Density 10 Armor Coverage 150 Evasion (%) 40 Recoil Reduction 2 Item Schematics ----------------- None Robot Schematics ------------------ None Fabricated ------------ Nothing Alien Tech Used ----------------- None Achievements -------------- None Challenges ------------ None Game ------ Seed PhaseSurveybotDoublenader Manual? 0 Play Time 00:31:25 Cumulative 261.4 hours Start 2022.04.04 @ 21:33:56 End 2022.04.04 @ 22:05:53 Sessions 1 Manual Loads 0 Difficulty Rogue Special Mode None Game No. 72 Rogue 72 Adventurer 0 Explorer 0 Win Type - Total 6 Types 3/1/0/0/2/0/0/0/0 Lore% 58 Gallery% 71 Achievement% 65 Wizard Run 0 Options --------- ASCII 0 Keyboard 0 Movement Arrows Keybinds 0 Fullscreen 0 Font 28/SmallcapsGlow Map View 72x54 Tactical HUD 1 Map Filters NONE Filters NONE Steam 1 RUN: d4cf3a7c-7f7d-4731-9be9-ee3b7874998e